[Event "*** Titled Tuesday Blitz"]
[Site "Chess.com"]
[Date "2020.04.07"]
[Round "5"]
[White "Haykos"]
[Black "UmutErdemGunduz"]
[Result "1-0"]
[WhiteElo "2601"]
[BlackElo "2410"]
[TimeControl "180+1"]
[EndTime "13:56:54 PDT"]
[Termination "Haykos won by resignation"]

1. e4 {[%clk 0:03:00.9]} 1... e5 {[%clk 0:02:59.7]} 2. Nf3 {[%clk 0:03:00.8]}
2... Nc6 {[%clk 0:02:59.1]} 3. Bc4 {[%clk 0:03:01.4]} 3... Bc5 {[%clk
0:02:58.8]} 4. d3 {[%clk 0:03:01.7]} 4... Nf6 {[%clk 0:02:58.7]} 5. O-O {[%clk
0:03:01.4]} 5... O-O {[%clk 0:02:58.2]} 6. c3 {[%clk 0:02:58.8]} 6... d6 {[%clk
0:02:58.6]} 7. Re1 {[%clk 0:02:57.2]} 7... a6 {[%clk 0:02:57.7]} 8. Bb3 {[%clk
0:02:57.6]} 8... Ba7 {[%clk 0:02:57.5]} 9. h3 {[%clk 0:02:54.7]} 9... h6 {[%clk
0:02:57.8]} 10. Nbd2 {[%clk 0:02:54.9]} 10... Re8 {[%clk 0:02:57.9]} 11. Nf1
{[%clk 0:02:55.3]} 11... Be6 {[%clk 0:02:57.6]} 12. Bc2 {[%clk 0:02:54.2]} 12...
d5 {[%clk 0:02:57.6]} 13. Qe2 {[%clk 0:02:52.5]} 13... Qd7 {[%clk 0:02:57]} 14.
Ng3 {[%clk 0:02:50.8]} 14... Rad8 {[%clk 0:02:57.3]} 15. Nh4 {[%clk 0:02:51.1]}
15... b5 {[%clk 0:02:25.8]} 16. Qf3 {[%clk 0:02:48.2]} 16... Nh7 {[%clk
0:02:18.5]} 17. Nhf5 {[%clk 0:02:46.1]} 17... f6 {[%clk 0:01:48.5]} 18. Qg4
{[%clk 0:01:50.6]} 18... Kh8 {[%clk 0:01:38.5]} 19. Bd2 {[%clk 0:01:49.1]} 19...
d4 {[%clk 0:01:36.8]} 20. a4 {[%clk 0:01:40.6]} 20... dxc3 {[%clk 0:01:34.7]}
21. bxc3 {[%clk 0:01:41.4]} 21... b4 {[%clk 0:01:25.4]} 22. cxb4 {[%clk
0:01:33.2]} 22... Nd4 {[%clk 0:01:25.3]} 23. Bb1 {[%clk 0:01:19.3]} 23... Bxf5
{[%clk 0:01:05.4]} 24. Nxf5 {[%clk 0:01:18.2]} 24... Nxf5 {[%clk 0:01:05.3]} 25.
Qxf5 {[%clk 0:01:17.5]} 25... Qxf5 {[%clk 0:00:59.2]} 26. exf5 {[%clk
0:01:17.8]} 26... Ng5 {[%clk 0:00:57.7]} 27. Be3 {[%clk 0:01:08.3]} 27... Bd4
{[%clk 0:00:52.5]} 28. Ra2 {[%clk 0:00:52.2]} 28... Nf7 {[%clk 0:00:37.2]} 29.
Rc1 {[%clk 0:00:52.3]} 29... Re7 {[%clk 0:00:34.1]} 30. Kf1 {[%clk 0:00:47.8]}
30... Nd6 {[%clk 0:00:28.2]} 31. Bxd4 {[%clk 0:00:47.7]} 31... exd4 {[%clk
0:00:28.4]} 32. g4 {[%clk 0:00:48]} 32... Nf7 {[%clk 0:00:27.9]} 33. Re2 {[%clk
0:00:45.1]} 33... Red7 {[%clk 0:00:23.2]} 34. f4 {[%clk 0:00:43.6]} 34... Rb8
{[%clk 0:00:19.6]} 35. Ba2 {[%clk 0:00:36.6]} 35... Nd6 {[%clk 0:00:16.4]} 36.
Be6 {[%clk 0:00:26]} 36... Re7 {[%clk 0:00:16.1]} 37. Rb2 {[%clk 0:00:26.4]}
37... g6 {[%clk 0:00:13.9]} 38. Rc6 {[%clk 0:00:26.2]} 38... gxf5 {[%clk
0:00:13.3]} 39. gxf5 {[%clk 0:00:26.6]} 39... Kg7 {[%clk 0:00:06.3]} 40. Rxa6
{[%clk 0:00:26.3]} 40... c5 {[%clk 0:00:04.4]} 41. b5 {[%clk 0:00:25.4]} 41...
Ne8 {[%clk 0:00:02.6]} 42. Rc6 {[%clk 0:00:24.8]} 42... Nc7 {[%clk 0:00:02.7]}
43. Rxc5 {[%clk 0:00:23.3]} 43... Nxe6 {[%clk 0:00:02]} 44. fxe6 {[%clk
0:00:24.2]} 44... Rxe6 {[%clk 0:00:02.9]} 45. a5 {[%clk 0:00:23.7]} 45... Re3
{[%clk 0:00:03]} 46. b6 {[%clk 0:00:19.3]} 46... Rxh3 {[%clk 0:00:02.4]} 47. b7
{[%clk 0:00:17.9]} 47... Rxd3 {[%clk 0:00:03]} 48. Rc8 {[%clk 0:00:17.4]} 48...
Rxb7 {[%clk 0:00:01.2]} 49. Rxb7+ {[%clk 0:00:18.3]} 49... Kg6 {[%clk
0:00:01.7]} 50. a6 {[%clk 0:00:18.7]} 50... Rf3+ {[%clk 0:00:02.1]} 51. Ke2
{[%clk 0:00:18.7]} 51... Rxf4 {[%clk 0:00:03]} 52. a7 {[%clk 0:00:19.3]} 52...
Re4+ {[%clk 0:00:02.8]} 53. Kd3 {[%clk 0:00:19.9]} 53... Re3+ {[%clk 0:00:02.5]}
54. Kxd4 {[%clk 0:00:20.4]} 54... Re1 {[%clk 0:00:02]} 55. a8=Q {[%clk
0:00:20.9]} 55... Rd1+ {[%clk 0:00:02.9]} 56. Ke3 {[%clk 0:00:21.4]} 1-0

[Event "*** Titled Tuesday Blitz"]
[Site "Chess.com"]
[Date "2020.04.07"]
[Round "5"]
[White "Taabling"]
[Black "suyu28"]
[Result "0-1"]
[WhiteElo "2296"]
[BlackElo "2499"]
[TimeControl "180+1"]
[EndTime "13:56:54 PDT"]
[Termination "suyu28 won on time"]

1. e4 {[%clk 0:02:14.7]} 1... e5 {[%clk 0:02:56.4]} 2. Nf3 {[%clk 0:02:14.2]}
2... Nc6 {[%clk 0:02:56.8]} 3. g3 {[%clk 0:02:13.7]} 3... Bc5 {[%clk 0:02:54.6]}
4. d3 {[%clk 0:02:13.8]} 4... Nf6 {[%clk 0:02:48.8]} 5. Bg2 {[%clk 0:02:14.1]}
5... O-O {[%clk 0:02:48.2]} 6. O-O {[%clk 0:02:14.3]} 6... a5 {[%clk 0:02:48.2]}
7. Nc3 {[%clk 0:01:55.8]} 7... d6 {[%clk 0:02:47.9]} 8. h3 {[%clk 0:01:55.7]}
8... a4 {[%clk 0:02:47.3]} 9. a3 {[%clk 0:01:55.4]} 9... h6 {[%clk 0:02:44.7]}
10. Kh2 {[%clk 0:01:54.6]} 10... Re8 {[%clk 0:02:44.6]} 11. Nh4 {[%clk
0:01:53.6]} 11... Nd4 {[%clk 0:02:44.4]} 12. Be3 {[%clk 0:01:45.3]} 12... c6
{[%clk 0:02:43.8]} 13. Ne2 {[%clk 0:01:36.3]} 13... d5 {[%clk 0:01:54.5]} 14.
Nxd4 {[%clk 0:01:35.1]} 14... exd4 {[%clk 0:01:53.8]} 15. Bc1 {[%clk 0:01:28.4]}
15... dxe4 {[%clk 0:01:50.3]} 16. dxe4 {[%clk 0:01:28.8]} 16... Nxe4 {[%clk
0:01:50.6]} 17. Qd3 {[%clk 0:01:25.7]} 17... Nf6 {[%clk 0:01:46.8]} 18. Bd2
{[%clk 0:01:21]} 18... Be6 {[%clk 0:01:45]} 19. Rae1 {[%clk 0:01:17]} 19... Qd7
{[%clk 0:01:43.2]} 20. f4 {[%clk 0:01:14.2]} 20... b5 {[%clk 0:01:35.3]} 21. Qf3
{[%clk 0:00:57.2]} 21... Bd5 {[%clk 0:01:35.1]} 22. Qf2 {[%clk 0:00:55.7]} 22...
Ne4 {[%clk 0:01:34.8]} 23. Bxe4 {[%clk 0:00:50]} 23... Bxe4 {[%clk 0:01:34.3]}
24. Bb4 {[%clk 0:00:49.5]} 24... Ba7 {[%clk 0:01:33.6]} 25. f5 {[%clk
0:00:47.2]} 25... f6 {[%clk 0:01:22.5]} 26. Qf4 {[%clk 0:00:42.1]} 26... Bxc2
{[%clk 0:01:14.1]} 27. Bd6 {[%clk 0:00:27.7]} 27... Rxe1 {[%clk 0:01:07.9]} 28.
Rxe1 {[%clk 0:00:26.7]} 28... Re8 {[%clk 0:01:08.1]} 29. Bb4 {[%clk 0:00:23.3]}
29... Rxe1 {[%clk 0:00:54.6]} 30. Bxe1 {[%clk 0:00:24.2]} 30... c5 {[%clk
0:00:44.7]} 31. Ng6 {[%clk 0:00:21.6]} 31... Bb3 {[%clk 0:00:11.9]} 32. Bd2
{[%clk 0:00:19.5]} 32... c4 {[%clk 0:00:10.4]} 33. Qe4 {[%clk 0:00:15.4]} 33...
Qd8 {[%clk 0:00:07.2]} 34. Qe6+ {[%clk 0:00:14]} 34... Kh7 {[%clk 0:00:07.4]}
35. Qf7 {[%clk 0:00:11.2]} 35... c3 {[%clk 0:00:07.5]} 36. Nf8+ {[%clk
0:00:10.4]} 36... Qxf8 {[%clk 0:00:07.4]} 37. Qxf8 {[%clk 0:00:11.2]} 37... cxd2
{[%clk 0:00:07.7]} 38. Qe8 {[%clk 0:00:06.9]} 38... d1=Q {[%clk 0:00:08.2]} 39.
Qg6+ {[%clk 0:00:07.4]} 39... Kh8 {[%clk 0:00:08.6]} 40. Qe8+ {[%clk 0:00:08]}
40... Bg8 {[%clk 0:00:09.2]} 41. h4 {[%clk 0:00:07.7]} 41... Qd2+ {[%clk
0:00:08.6]} 42. Kh3 {[%clk 0:00:07.5]} 42... Qe3 {[%clk 0:00:08.8]} 43. Qd7
{[%clk 0:00:03.7]} 43... d3 {[%clk 0:00:08.9]} 44. Qxb5 {[%clk 0:00:01.9]} 44...
d2 {[%clk 0:00:08.9]} 0-1

[Event "*** Titled Tuesday Blitz"]
[Site "Chess.com"]
[Date "2020.04.07"]
[Round "5"]
[White "jk13"]
[Black "canwedoit"]
[Result "1-0"]
[WhiteElo "2824"]
[BlackElo "2622"]
[TimeControl "180+1"]
[EndTime "13:56:56 PDT"]
[Termination "jk13 won on time"]

1. e4 {[%clk 0:03:00.9]} 1... c5 {[%clk 0:02:59.6]} 2. c3 {[%clk 0:03:01.3]}
2... Nf6 {[%clk 0:02:56.7]} 3. e5 {[%clk 0:03:01.2]} 3... Nd5 {[%clk 0:02:56.6]}
4. Bc4 {[%clk 0:03:02.1]} 4... Nb6 {[%clk 0:02:54.6]} 5. Bb3 {[%clk 0:03:02.5]}
5... c4 {[%clk 0:02:54.9]} 6. Bc2 {[%clk 0:03:02.3]} 6... d5 {[%clk 0:02:50.8]}
7. exd6 {[%clk 0:03:02]} 7... Qxd6 {[%clk 0:02:51]} 8. Nf3 {[%clk 0:03:02.9]}
8... Nc6 {[%clk 0:02:40.6]} 9. O-O {[%clk 0:03:02.3]} 9... Bg4 {[%clk
0:02:31.1]} 10. Qe2 {[%clk 0:03:02.7]} 10... e6 {[%clk 0:02:31.2]} 11. Na3
{[%clk 0:03:02]} 11... Qc5 {[%clk 0:02:14.3]} 12. b3 {[%clk 0:03:00.8]} 12...
cxb3 {[%clk 0:02:11.6]} 13. axb3 {[%clk 0:03:01.7]} 13... Be7 {[%clk 0:02:11.8]}
14. Nc4 {[%clk 0:03:01.9]} 14... Nxc4 {[%clk 0:02:09]} 15. bxc4 {[%clk
0:03:02.8]} 15... Bxf3 {[%clk 0:02:05.9]} 16. gxf3 {[%clk 0:02:37.7]} 16... O-O
{[%clk 0:01:52.9]} 17. d4 {[%clk 0:02:38]} 17... Qh5 {[%clk 0:01:52.9]} 18. Rb1
{[%clk 0:02:33.8]} 18... b6 {[%clk 0:01:48.9]} 19. Rb5 {[%clk 0:02:33.6]} 19...
Qh4 {[%clk 0:01:38.8]} 20. Qe4 {[%clk 0:02:27.7]} 20... Qxe4 {[%clk 0:01:38.5]}
21. fxe4 {[%clk 0:02:26.1]} 21... Rac8 {[%clk 0:01:35]} 22. Bd3 {[%clk
0:02:24.5]} 22... Rfd8 {[%clk 0:01:30.5]} 23. Be3 {[%clk 0:02:21.5]} 23... e5
{[%clk 0:01:04.4]} 24. Rd5 {[%clk 0:02:06.2]} 24... exd4 {[%clk 0:01:01.4]} 25.
cxd4 {[%clk 0:02:05.9]} 25... Nb4 {[%clk 0:00:55]} 26. Rxd8+ {[%clk 0:02:06.1]}
26... Bxd8 {[%clk 0:00:55.5]} 27. Be2 {[%clk 0:02:03.8]} 27... Nc2 {[%clk
0:00:55.2]} 28. Rb1 {[%clk 0:01:47.7]} 28... a5 {[%clk 0:00:51.6]} 29. Rb2
{[%clk 0:01:35]} 29... Nxe3 {[%clk 0:00:45.6]} 30. fxe3 {[%clk 0:01:35.9]} 30...
Kf8 {[%clk 0:00:43]} 31. Kf1 {[%clk 0:01:27.7]} 31... Ke7 {[%clk 0:00:39.5]} 32.
Ke1 {[%clk 0:01:25.2]} 32... Ra8 {[%clk 0:00:34.9]} 33. Ra2 {[%clk 0:01:20.2]}
33... Kd6 {[%clk 0:00:33.3]} 34. e5+ {[%clk 0:01:18.8]} 34... Kc7 {[%clk
0:00:33.5]} 35. Bd1 {[%clk 0:01:17]} 35... f6 {[%clk 0:00:28.6]} 36. exf6 {[%clk
0:01:12.6]} 36... Bxf6 {[%clk 0:00:27.2]} 37. Ba4 {[%clk 0:01:13.2]} 37... Bg5
{[%clk 0:00:23.7]} 38. Ke2 {[%clk 0:01:09.6]} 38... Rf8 {[%clk 0:00:24.1]} 39.
Rb2 {[%clk 0:01:04.9]} 39... Rf6 {[%clk 0:00:24.3]} 40. Rb5 {[%clk 0:01:03.9]}
40... h6 {[%clk 0:00:19.4]} 41. c5 {[%clk 0:01:03.4]} 41... Re6 {[%clk 0:00:16]}
42. cxb6+ {[%clk 0:01:00.4]} 42... Rxb6 {[%clk 0:00:12.3]} 43. Rxa5 {[%clk
0:01:00]} 43... Re6 {[%clk 0:00:12.5]} 44. Rc5+ {[%clk 0:00:45.3]} 44... Kd8
{[%clk 0:00:12.8]} 45. Rc3 {[%clk 0:00:43.9]} 45... Bf6 {[%clk 0:00:11.3]} 46.
Kd3 {[%clk 0:00:41.2]} 46... Bg5 {[%clk 0:00:11.1]} 47. e4 {[%clk 0:00:39.7]}
47... Ra6 {[%clk 0:00:11.7]} 48. Rc4 {[%clk 0:00:38.1]} 48... Rb6 {[%clk
0:00:10]} 49. e5 {[%clk 0:00:37.3]} 49... Rb1 {[%clk 0:00:08.8]} 50. Rc2 {[%clk
0:00:30.9]} 50... Rd1+ {[%clk 0:00:08.5]} 51. Ke4 {[%clk 0:00:31]} 51... Ra1
{[%clk 0:00:07.3]} 52. Bb3 {[%clk 0:00:27.7]} 52... Ra5 {[%clk 0:00:07.7]} 53.
Be6 {[%clk 0:00:24.9]} 53... Ke7 {[%clk 0:00:07.6]} 54. Bf5 {[%clk 0:00:18.1]}
54... Kd8 {[%clk 0:00:05.7]} 55. Rc8+ {[%clk 0:00:17.8]} 55... Ke7 {[%clk
0:00:05.7]} 56. Rc7+ {[%clk 0:00:18.7]} 56... Kf8 {[%clk 0:00:05.9]} 57. Bg6
{[%clk 0:00:17.4]} 57... Ra1 {[%clk 0:00:01.4]} 58. Rf7+ {[%clk 0:00:17.2]}
58... Kg8 {[%clk 0:00:01.6]} 59. Rb7 {[%clk 0:00:17.2]} 59... Kf8 {[%clk
0:00:01.2]} 60. d5 {[%clk 0:00:16.9]} 1-0

[Event "*** Titled Tuesday Blitz"]
[Site "Chess.com"]
[Date "2020.04.07"]
[Round "5"]
[White "GMKrikor"]
[Black "ckgchess"]
[Result "0-1"]
[WhiteElo "2790"]
[BlackElo "2633"]
[TimeControl "180+1"]
[EndTime "13:56:57 PDT"]
[Termination "ckgchess won by resignation"]

1. e4 {[%clk 0:03:00.9]} 1... c5 {[%clk 0:02:59.8]} 2. Nf3 {[%clk 0:03:00.6]}
2... d6 {[%clk 0:03:00.2]} 3. d4 {[%clk 0:03:00.7]} 3... cxd4 {[%clk 0:03:01.1]}
4. Nxd4 {[%clk 0:03:01.6]} 4... Nf6 {[%clk 0:03:01.8]} 5. Nc3 {[%clk 0:03:02.1]}
5... a6 {[%clk 0:03:02.5]} 6. a3 {[%clk 0:03:02.5]} 6... Nc6 {[%clk 0:03:01.3]}
7. f3 {[%clk 0:02:58.9]} 7... e5 {[%clk 0:02:55.3]} 8. Nb3 {[%clk 0:02:52]} 8...
Be6 {[%clk 0:02:53.8]} 9. Be3 {[%clk 0:02:50.3]} 9... Be7 {[%clk 0:02:53]} 10.
Qd2 {[%clk 0:02:50.1]} 10... O-O {[%clk 0:02:52.5]} 11. Nd5 {[%clk 0:02:41.7]}
11... Bxd5 {[%clk 0:02:01.5]} 12. exd5 {[%clk 0:02:41.8]} 12... Nb8 {[%clk
0:02:02.4]} 13. a4 {[%clk 0:02:39.3]} 13... Nbd7 {[%clk 0:02:00.1]} 14. a5
{[%clk 0:02:37.8]} 14... Rc8 {[%clk 0:01:55.8]} 15. c4 {[%clk 0:02:31.9]} 15...
Nh5 {[%clk 0:01:52.6]} 16. Be2 {[%clk 0:02:25.3]} 16... Nf4 {[%clk 0:01:31]} 17.
Bf1 {[%clk 0:02:14.2]} 17... f5 {[%clk 0:01:15.2]} 18. g3 {[%clk 0:02:14.3]}
18... Ng6 {[%clk 0:01:13.4]} 19. Be2 {[%clk 0:01:58.7]} 19... f4 {[%clk
0:01:11.7]} 20. Bf2 {[%clk 0:01:59]} 20... e4 {[%clk 0:01:05.5]} 21. fxe4 {[%clk
0:01:59.1]} 21... Nde5 {[%clk 0:00:59]} 22. Rc1 {[%clk 0:01:44.8]} 22... Bg5
{[%clk 0:00:58.7]} 23. Qd1 {[%clk 0:01:03.2]} 23... f3 {[%clk 0:00:29.4]} 24.
Bf1 {[%clk 0:01:03]} 24... Ng4 {[%clk 0:00:29.7]} 25. Rc2 {[%clk 0:00:57.3]}
25... Nxf2 {[%clk 0:00:25.7]} 26. Kxf2 {[%clk 0:00:39.9]} 26... Ne5 {[%clk
0:00:25.8]} 27. h3 {[%clk 0:00:31.6]} 27... b6 {[%clk 0:00:16.8]} 28. Qd4 {[%clk
0:00:27.9]} 28... bxa5 {[%clk 0:00:16.1]} 29. c5 {[%clk 0:00:28.6]} 29... a4
{[%clk 0:00:15.8]} 30. Qxa4 {[%clk 0:00:27.3]} 30... dxc5 {[%clk 0:00:15.6]} 31.
Nxc5 {[%clk 0:00:23.4]} 31... Qb6 {[%clk 0:00:13.7]} 32. Qd4 {[%clk 0:00:22.7]}
32... Bf6 {[%clk 0:00:09.2]} 33. Qe3 {[%clk 0:00:23]} 33... Nd7 {[%clk
0:00:04.5]} 34. b4 {[%clk 0:00:22]} 34... Qxb4 {[%clk 0:00:04.3]} 35. Bxa6
{[%clk 0:00:09.3]} 35... Bd4 {[%clk 0:00:04]} 36. Bxc8 {[%clk 0:00:06]} 36...
Bxe3+ {[%clk 0:00:04.5]} 37. Kxe3 {[%clk 0:00:06.9]} 37... Nxc5 {[%clk
0:00:05.2]} 38. Bg4 {[%clk 0:00:06.3]} 38... Qxe4+ {[%clk 0:00:04.8]} 39. Kd2
{[%clk 0:00:05]} 39... Nb3+ {[%clk 0:00:05.1]} 40. Kc3 {[%clk 0:00:03.6]} 40...
Qe3+ {[%clk 0:00:05.6]} 41. Kb2 {[%clk 0:00:03.1]} 41... Nd4 {[%clk 0:00:06.2]}
42. Be6+ {[%clk 0:00:04]} 42... Kh8 {[%clk 0:00:06.1]} 43. Rc3 {[%clk
0:00:03.7]} 43... Rb8+ {[%clk 0:00:06.2]} 44. Ka1 {[%clk 0:00:02.3]} 0-1

[Event "*** Titled Tuesday Blitz"]
[Site "Chess.com"]
[Date "2020.04.07"]
[Round "5"]
[White "Yanidze"]
[Black "BakaPG"]
[Result "1-0"]
[WhiteElo "2465"]
[BlackElo "2667"]
[TimeControl "180+1"]
[EndTime "13:56:57 PDT"]
[Termination "Yanidze won by checkmate"]

1. d4 {[%clk 0:03:00.9]} 1... d5 {[%clk 0:02:59.3]} 2. c4 {[%clk 0:02:59.2]}
2... c6 {[%clk 0:02:58.3]} 3. Nf3 {[%clk 0:02:55.1]} 3... Nf6 {[%clk 0:02:57.6]}
4. Nc3 {[%clk 0:02:55.5]} 4... e6 {[%clk 0:02:57.4]} 5. cxd5 {[%clk 0:02:53]}
5... exd5 {[%clk 0:02:56.8]} 6. Bg5 {[%clk 0:02:53.3]} 6... Bf5 {[%clk
0:02:56.1]} 7. e3 {[%clk 0:02:53.3]} 7... Nbd7 {[%clk 0:02:53.4]} 8. Qb3 {[%clk
0:02:46.2]} 8... Qb6 {[%clk 0:02:50.6]} 9. Qxb6 {[%clk 0:02:41.7]} 9... axb6
{[%clk 0:02:49.6]} 10. Be2 {[%clk 0:02:40.9]} 10... b5 {[%clk 0:02:48.5]} 11.
O-O {[%clk 0:02:36.6]} 11... b4 {[%clk 0:02:47.6]} 12. Nd1 {[%clk 0:02:34.8]}
12... Bd6 {[%clk 0:02:45.8]} 13. Nd2 {[%clk 0:02:29]} 13... O-O {[%clk
0:02:42.3]} 14. f3 {[%clk 0:02:24.5]} 14... Ra7 {[%clk 0:02:22.7]} 15. e4 {[%clk
0:02:15.5]} 15... dxe4 {[%clk 0:02:21.9]} 16. fxe4 {[%clk 0:02:15.8]} 16... Bxe4
{[%clk 0:02:17.3]} 17. Bxf6 {[%clk 0:02:14.8]} 17... Nxf6 {[%clk 0:02:16.9]} 18.
Rxf6 {[%clk 0:02:14.7]} 18... gxf6 {[%clk 0:02:15]} 19. Nxe4 {[%clk 0:02:15.1]}
19... Be7 {[%clk 0:02:12.8]} 20. Ne3 {[%clk 0:02:14.3]} 20... Rfa8 {[%clk
0:02:11.7]} 21. Bc4 {[%clk 0:02:11.6]} 21... Rd8 {[%clk 0:01:59.4]} 22. Nf5
{[%clk 0:02:10.9]} 22... Kf8 {[%clk 0:01:57.4]} 23. Re1 {[%clk 0:02:04.1]} 23...
Rd7 {[%clk 0:01:48.5]} 24. Re3 {[%clk 0:01:46.7]} 24... Ra5 {[%clk 0:01:38]} 25.
g4 {[%clk 0:01:36.7]} 25... b5 {[%clk 0:01:23.5]} 26. Bb3 {[%clk 0:01:34.8]}
26... Raa7 {[%clk 0:01:08.9]} 27. Rh3 {[%clk 0:01:33]} 27... Kg8 {[%clk
0:01:05.9]} 28. Kf1 {[%clk 0:01:10.6]} 28... Bd8 {[%clk 0:01:03]} 29. Nc5 {[%clk
0:01:05.4]} 29... Rdc7 {[%clk 0:00:57.7]} 30. Rh6 {[%clk 0:00:47.3]} 30... Be7
{[%clk 0:00:49.4]} 31. Ne4 {[%clk 0:00:42.9]} 31... c5 {[%clk 0:00:48.1]} 32.
dxc5 {[%clk 0:00:39.6]} 32... Ra6 {[%clk 0:00:41.2]} 33. Nfd6 {[%clk 0:00:21]}
33... Kg7 {[%clk 0:00:29.4]} 34. Rh5 {[%clk 0:00:21.2]} 34... Ra8 {[%clk
0:00:28]} 35. Nf5+ {[%clk 0:00:21.3]} 35... Kh8 {[%clk 0:00:22.4]} 36. Nxe7
{[%clk 0:00:20.4]} 36... Rxe7 {[%clk 0:00:22]} 37. Nxf6 {[%clk 0:00:21]} 37...
Kg7 {[%clk 0:00:20.3]} 38. g5 {[%clk 0:00:21.5]} 38... Rh8 {[%clk 0:00:19.5]}
39. c6 {[%clk 0:00:21.9]} 39... Re5 {[%clk 0:00:17.6]} 40. Rh3 {[%clk
0:00:10.3]} 40... Rxg5 {[%clk 0:00:16.8]} 41. Ne4 {[%clk 0:00:10.2]} 41... Rf5+
{[%clk 0:00:14.9]} 42. Ke2 {[%clk 0:00:10.8]} 42... Re8 {[%clk 0:00:14.1]} 43.
Kd3 {[%clk 0:00:10.6]} 43... Rd8+ {[%clk 0:00:10.7]} 44. Ke3 {[%clk 0:00:10.6]}
44... Re5 {[%clk 0:00:11.3]} 45. Rg3+ {[%clk 0:00:10.8]} 45... Kf8 {[%clk
0:00:10.6]} 46. Rf3 {[%clk 0:00:11.3]} 46... Re7 {[%clk 0:00:09.1]} 47. Kf2
{[%clk 0:00:11.3]} 47... Rxe4 {[%clk 0:00:07.6]} 48. Rxf7+ {[%clk 0:00:11.6]}
48... Ke8 {[%clk 0:00:08.2]} 49. Rxh7 {[%clk 0:00:12]} 49... Rd2+ {[%clk
0:00:07.7]} 50. Kf3 {[%clk 0:00:12.5]} 50... Re7 {[%clk 0:00:04.1]} 51. Rh8#
{[%clk 0:00:12.7]} 1-0

[Event "*** Titled Tuesday Blitz"]
[Site "Chess.com"]
[Date "2020.04.07"]
[Round "5"]
[White "Evhen_Taranenko"]
[Black "King_of_the_wing"]
[Result "0-1"]
[WhiteElo "2323"]
[BlackElo "2041"]
[TimeControl "180+1"]
[EndTime "13:56:57 PDT"]
[Termination "King_of_the_wing won by resignation"]

1. d4 {[%clk 0:03:00.9]} 1... d5 {[%clk 0:02:59.2]} 2. Nf3 {[%clk 0:03:00.4]}
2... c6 {[%clk 0:02:59.2]} 3. Bf4 {[%clk 0:02:59.9]} 3... Qb6 {[%clk 0:02:56.5]}
4. Qc1 {[%clk 0:02:53]} 4... Nf6 {[%clk 0:02:54.3]} 5. e3 {[%clk 0:02:51.5]}
5... Bf5 {[%clk 0:02:52.5]} 6. h3 {[%clk 0:02:44.7]} 6... Nbd7 {[%clk
0:02:52.4]} 7. Be2 {[%clk 0:02:40.9]} 7... h6 {[%clk 0:02:38.1]} 8. Nbd2 {[%clk
0:02:40.2]} 8... Ne4 {[%clk 0:02:34.2]} 9. c4 {[%clk 0:02:31.9]} 9... Nxd2
{[%clk 0:02:19]} 10. Nxd2 {[%clk 0:02:30.9]} 10... e5 {[%clk 0:01:45.9]} 11. c5
{[%clk 0:02:16.4]} 11... Qc7 {[%clk 0:01:37.3]} 12. Bg3 {[%clk 0:02:13.2]} 12...
Be7 {[%clk 0:01:28.7]} 13. O-O {[%clk 0:02:12.6]} 13... f6 {[%clk 0:01:23.7]}
14. Bh5+ {[%clk 0:02:07.2]} 14... g6 {[%clk 0:01:20.7]} 15. Be2 {[%clk
0:02:06.9]} 15... O-O {[%clk 0:01:15.3]} 16. Nf3 {[%clk 0:02:01.2]} 16... Be4
{[%clk 0:01:09.9]} 17. Qd2 {[%clk 0:01:48.2]} 17... Qd8 {[%clk 0:01:00.6]} 18.
Nh4 {[%clk 0:01:40.9]} 18... exd4 {[%clk 0:00:48.5]} 19. exd4 {[%clk 0:01:19.7]}
19... g5 {[%clk 0:00:47.4]} 20. Nf3 {[%clk 0:01:06.7]} 20... Bxf3 {[%clk
0:00:45.3]} 21. Bxf3 {[%clk 0:01:06.1]} 21... f5 {[%clk 0:00:43.5]} 22. Qd3
{[%clk 0:00:43.6]} 22... Qe8 {[%clk 0:00:39.5]} 23. Bc7 {[%clk 0:00:21.7]} 23...
Rc8 {[%clk 0:00:33.2]} 24. Ba5 {[%clk 0:00:22]} 24... Qf7 {[%clk 0:00:22.3]} 25.
Bd2 {[%clk 0:00:19.8]} 25... Qg6 {[%clk 0:00:21.1]} 26. g4 {[%clk 0:00:15.6]}
26... Qf6 {[%clk 0:00:17.7]} 27. Rae1 {[%clk 0:00:11.8]} 27... Bd8 {[%clk
0:00:14.3]} 28. gxf5 {[%clk 0:00:08.1]} 28... Qxf5 {[%clk 0:00:14.4]} 29. Qxf5
{[%clk 0:00:08.4]} 29... Rxf5 {[%clk 0:00:15.3]} 30. Bg4 {[%clk 0:00:05.8]}
30... Rf7 {[%clk 0:00:10.7]} 31. Be6 {[%clk 0:00:05.9]} 31... Kf8 {[%clk
0:00:10.4]} 32. Bxf7 {[%clk 0:00:06.8]} 32... Kxf7 {[%clk 0:00:10.8]} 33. Re2
{[%clk 0:00:06.6]} 33... Nf6 {[%clk 0:00:10.4]} 34. Rfe1 {[%clk 0:00:06.5]}
34... Ne4 {[%clk 0:00:10.8]} 35. f3 {[%clk 0:00:02.5]} 35... Nxd2 {[%clk
0:00:08.9]} 36. Rxd2 {[%clk 0:00:03.2]} 36... Ba5 {[%clk 0:00:09.4]} 37. Rde2
{[%clk 0:00:01.9]} 37... Bxe1 {[%clk 0:00:09.6]} 38. Rxe1 {[%clk 0:00:02.7]}
38... Re8 {[%clk 0:00:08.1]} 39. b3 {[%clk 0:00:03.6]} 39... Rxe1+ {[%clk
0:00:08.5]} 40. Kf2 {[%clk 0:00:03.8]} 40... Ra1 {[%clk 0:00:09.4]} 0-1